Workbook

Sheet Solver
A1: Parameter | B1: Value
A2: C_PM | B2: 7000
A3: C_CM | B3: 35000
A4: C_EP | B4: =0.1*5000 -> 500
A5: C_ES | B5: =0.005*0.2*25000000 -> 25000
A6: alpha | B6: 3
A7: MTTF | B7: 175000
A8: tau | B8: 75793.8748
A9: lambdaE | B9: =(_xlfn.GAMMA(1+1/alpha)/MTTF)^alpha*tau^(alpha-1) -> 7.632706412e-07 | C9: =_xlfn.FORMULATEXT(B9) -> =(GAMMA(1+1/alpha)/MTTF)^alpha*tau^(alpha-1)
A10: C(tau) | B10: =C_PM/tau+lambdaE*(C_CM+C_EP+C_ES) -> 0.1385336218 | C10: =_xlfn.FORMULATEXT(B10) -> =C_PM/tau+lambdaE*(C_CM+C_EP+C_ES)
A13: Analytical | B13: =MTTF/_xlfn.GAMMA(1+1/alpha)*(C_PM/((alpha-1)*(C_CM+C_EP+C_ES)))^(1/alpha) -> 75793.87491 | C13: =_xlfn.FORMULATEXT(B13) -> =MTTF/GAMMA(1+1/alpha)*(C_PM/((alpha-1)*(C_CM+C_EP+C_ES)))^(1/alpha)
A15: Problemløseren/Solveren må innstalleresl. Dersom denne er innstallert, klikk på "Data" fra topp-menyen
A18: Klikk på fanen "Plot" for å se oppsett for å løse grafisk

Sheet Plot
A1: Tau | B1: PM-Cost | C1: Repair-Cost | D1: Leasing-Cost | E1: Safety-Cost | F1: Total-Cost
A2: =60000 -> 60000 | B2: =C_PM/A2 -> 0.1166666667 | C2: =(EXP(GAMMALN(1+1/alpha))/MTTF)^alpha*A2^(alpha-1)*C_CM -> 0.0167409802 | D2: =(EXP(GAMMALN(1+1/alpha))/MTTF)^alpha*A2^(alpha-1)*C_EP -> 0.0002391568601 | E2: =(EXP(GAMMALN(1+1/alpha))/MTTF)^alpha*A2^(alpha-1)*C_ES -> 0.011957843 | F2: =SUM(B2:E2) -> 0.1456046467
A3: =A2+5000 -> 65000 | B3: 0.1076923077 | C3: 0.01964740038 | D3: 0.0002806771483 | E3: 0.01403385741 | F3: =SUM(B3:E3) -> 0.1416542426
A4: =A3+5000 -> 70000 | B4: 0.1 | C4: 0.02278633417 | D4: 0.0003255190595 | E4: 0.01627595298 | F4: 0.1393878062
A5: 75000 | B5: 0.09333333333 | C5: 0.02615778157 | D5: 0.0003736825938 | E5: 0.01868412969 | F5: 0.1385489272
A6: 80000 | B6: 0.0875 | C6: 0.02976174258 | D6: 0.0004251677512 | E6: 0.02125838756 | F6: 0.1389452979
A7: 85000 | B7: 0.08235294118 | C7: 0.03359821721 | D7: 0.0004799745316 | E7: 0.02399872658 | F7: 0.1404298595
A8: 90000 | B8: 0.07777777778 | C8: 0.03766720546 | D8: 0.0005381029351 | E8: 0.02690514676 | F8: 0.1428882329
A9: 95000 | B9: 0.07368421053 | C9: 0.04196870732 | D9: 0.0005995529617 | E9: 0.02997764808 | F9: 0.1462301189
A10: 100000 | B10: 0.07 | C10: 0.04650272279 | D10: 0.0006643246113 | E10: 0.03321623056 | F10: 0.150383278
A11: 105000 | B11: 0.06666666667 | C11: 0.05126925187 | D11: 0.0007324178839 | E11: 0.0366208942 | F11: 0.1552892306
A12: 110000 | B12: 0.06363636364 | C12: 0.05626829457 | D12: 0.0008038327796 | E12: 0.04019163898 | F12: 0.16090013
F13: =MIN(F2:F12) -> 0.1385489272
A17: Klikk på fanen "Solver" for å se oppsett for å løse numerisk
